[Event "41st Jacques-Lemans-Open 2022"]
[Site "St. Veit/Glan"]
[Date "2022.07.11"]
[Round "4.19"]
[White "Elpons, Walter"]
[Black "Vojinov, Danijel"]
[Result "0-1"]
[ECO "A45"]
[WhiteElo "1952"]
[BlackElo "2201"]
[Annotator "ChessBase"]
[PlyCount "90"]
[EventDate "2022.07.09"]
[EventType "swiss"]
[EventCountry "AUT"]
[SourceTitle "playchess.com"]
[Source "ChessBase"]
[SourceQuality "1"]
[TimeControl "40/5400+30:1800+30"]

1. d4 {[%emt 0:00:07]} Nf6 {[%emt 0:00:20]} 2. Bf4 {[%emt 0:00:22]} d6 {[%emt 0:01:06]} 3. e3 {[%emt 0:00:28]} g6 {[%emt 0:00:34]} 4. Bd3 {[%emt 0:00:55]} Bg7 {[%emt 0:00:35]} 5. Nf3 {[%emt 0:00:11]} c6 {[%emt 0:00:28]} 6. O-O {[%emt 0:00:59]} Bg4 {[%emt 0:01:16]} 7. h3 {[%emt 0:04:56]} Bxf3 {[%emt 0:00:09]} 8. Qxf3 {[%emt 0:00:06]} Nbd7 {[%emt 0:00:46]} 9. Bh2 {[%emt 0:11:11]} O-O {[%emt 0:00:52]} 10. c3 {[%emt 0:00:22]} e5 {[%emt 0:01:32]} 11. dxe5 {[%emt 0:00:58]} Nxe5 {[%emt 0:00:39]} 12. Bxe5 {[%emt 0:00:23]} dxe5 {[%emt 0:00:10]} 13. e4 {[%emt 0:00:16]} Qb6 {[%emt 0:01:12]} 14. b3 {[%emt 0:02:23]} Rad8 {[%emt 0:00:39]} 15. Nd2 {[%emt 0:07:48]} Nh5 {[%emt 0:04:43]} 16. Nc4 {[%emt 0:04:37]} Qc7 {[%emt 0:01:00]} 17. Rfd1 {[%emt 0:02:25]} Nf4 {[%emt 0:07:05]} 18. Bc2 {[%emt 0:00:48]} b5 {[%emt 0:16:47]} 19. Nb2 {[%emt 0:05:02]} Qa5 {[%emt 0:02:17]} 20. Kh2 {[%emt 0:10:43]} Rxd1 {[%emt 0:01:37]} 21. Nxd1 {[%emt 0:03:35]} Rd8 {[%emt 0:01:19]} 22. Qe3 {[%emt 0:01:03]} Bf8 {[%emt 0:02:30]} 23. g3 {[%emt 0:06:45]} Ne6 {[%emt 0:01:05]} 24. Nb2 {[%emt 0:02:03]} Bc5 {[%emt 0:14:26]} 25. Qe1 {[%emt 0:01:07]} Bxf2 {[%emt 0:04:44]} 26. Qxf2 {[%emt 0:08:42]} Qxc3 {[%emt 0:00:35]} 27. Rd1 {[%emt 0:06:01]} Qxb2 {[%emt 0:00:49]} 28. Rf1 {[%emt 0:03:30]} Rd7 {[%emt 0:02:04]} 29. Kh1 {[%emt 0:01:45]} Qxa2 {[%emt 0:01:56]} 30. b4 {[%emt 0:00:34]} Nd4 {[%emt 0:01:14]} 31. Rd1 {[%emt 0:01:12]} Qe6 {[%emt 0:00:33]} 32. Bb1 {[%emt 0:00:37]} Qxh3+ {[%emt 0:00:40]} 33. Kg1 {[%emt 0:00:05]} Qg4 {[%emt 0:01:15]} 34. Rf1 {[%emt 0:01:06]} Ne2+ {[%emt 0:02:47]} 35. Kh2 {[%emt 0:00:10]} Nd4 {[%emt 0:04:07]} 36. Ba2 {[%emt 0:01:33]} Qe2 {[%emt 0:01:13]} 37. Kg1 {[%emt 0:02:11]} Qxf2+ {[%emt 0:00:14]} 38. Rxf2 {[%emt 0:00:07]} Kg7 {[%emt 0:00:14]} 39. g4 {[%emt 0:00:27]} h6 {[%emt 0:00:45]} 40. Kg2 {[%emt 0:00:20]} Rc7 {[%emt 0:01:35]} 41. Kh3 {[%emt 0:30:59]} f6 {[%emt 0:30:31]} 42. Rd2 {[%emt 0:02:17]} c5 {[%emt 0:00:13]} 43. bxc5 {[%emt 0:00:11]} Rxc5 {[%emt 0:00:07]} 44. Bd5 {[%emt 0:00:26]} Rc3+ {[%emt 0:00:08]} 45. Kg2 {[%emt 0:00:41]} Rc2 {[%emt 0:00:09]} 0-1

[Event "41st Jacques-Lemans-Open 2022"]
[Site "St. Veit/Glan"]
[Date "2022.07.11"]
[Round "4.20"]
[White "Blasge, Tobias"]
[Black "Bauer, Thomas"]
[Result "0-1"]
[ECO "A61"]
[WhiteElo "1826"]
[BlackElo "2228"]
[Annotator "ChessBase"]
[PlyCount "75"]
[EventDate "2022.07.09"]
[EventType "swiss"]
[EventCountry "AUT"]
[SourceTitle "playchess.com"]
[Source "ChessBase"]
[SourceQuality "1"]
[TimeControl "40/5400+30:1800+30"]

1. d4 {[%emt 0:00:02]} Nf6 {[%emt 0:00:02]} 2. c4 {[%emt 0:00:06]} e6 {[%emt 0:00:04]} 3. Nf3 {[%emt 0:00:05]} c5 {[%emt 0:00:04]} 4. d5 {[%emt 0:00:36]} exd5 {[%emt 0:00:18]} 5. cxd5 {[%emt 0:00:05]} d6 {[%emt 0:00:07]} 6. Nc3 {[%emt 0:00:07]} g6 {[%emt 0:00:03]} 7. Bf4 {[%emt 0:00:33]} a6 {[%emt 0:00:04]} 8. a4 {[%emt 0:00:04]} Bg7 {[%emt 0:00:05]} 9. h3 {[%emt 0:00:09]} O-O {[%emt 0:00:10]} 10. e3 {[%emt 0:00:06]} Ne8 {[%emt 0:00:06]} 11. Be2 {[%emt 0:09:40]} b6 {[%emt 0:01:03]} 12. O-O {[%emt 0:09:57]} Nd7 {[%emt 0:02:34]} 13. Qd2 {[%emt 0:01:49]} Ne5 {[%emt 0:04:03]} 14. Rfe1 {[%emt 0:15:33]} h6 {[%emt 0:07:01]} 15. Bh2 {[%emt 0:10:48]} Qe7 {[%emt 0:06:06]} 16. Rab1 {[%emt 0:11:42]} Qc7 {[%emt 0:20:51]} 17. e4 {[%emt 0:18:44]} Nxf3+ {[%emt 0:01:10]} 18. Bxf3 {[%emt 0:04:06]} Rb8 {[%emt 0:00:01]} 19. Rbd1 {[%emt 0:12:42]} f6 {[%emt 0:19:42]} 20. Be2 {[%emt 0:02:27]} Qe7 {[%emt 0:05:57]} 21. Bf4 {[%emt 0:00:53]} Kh7 {[%emt 0:01:15]} 22. Be3 {[%emt 0:00:38]} Nc7 {[%emt 0:00:01]} 23. f4 {[%emt 0:00:30]} b5 {[%emt 0:05:52]} 24. axb5 {[%emt 0:00:28]} axb5 {[%emt 0:00:04]} 25. Bf3 {[%emt 0:00:34]} Rf7 {[%emt 0:03:26]} 26. Bxc5 {[%emt 0:00:18]} b4 {[%emt 0:02:01]} 27. Ne2 {[%emt 0:00:41]} dxc5 {[%emt 0:00:01]} 28. d6 {[%emt 0:00:06]} Qd8 {[%emt 0:02:20]} 29. dxc7 {[%emt 0:00:29]} Qxc7 {[%emt 0:00:02]} 30. Ng3 {[%emt 0:00:55]} Bb7 {[%emt 0:02:47]} 31. Rc1 {[%emt 0:00:29]} Ba6 {[%emt 0:02:27]} 32. b3 {[%emt 0:00:34]} Rd7 {[%emt 0:03:32]} 33. Qa2 {[%emt 0:00:29]} Qxf4 {[%emt 0:00:53]} 34. Qxa6 {[%emt 0:00:20]} Qxg3 {[%emt 0:00:06]} 35. Qe6 {[%emt 0:00:36]} Rd2 {[%emt 0:02:52]} 36. Qc4 {[%emt 0:00:36]} Rbd8 {[%emt 0:04:29]} 37. Qxc5 {[%emt 0:00:25]} R8d3 {[%emt 0:00:01]} 38. Re3 {[%emt 0:00:35]} 0-1

[Event "41st Jacques-Lemans-Open 2022"]
[Site "St. Veit/Glan"]
[Date "2022.07.12"]
[Round "4.21"]
[White "Manhardt, Thomas"]
[Black "Kozomara, David"]
[Result "1-0"]
[ECO "A01"]
[WhiteElo "2227"]
[BlackElo "2016"]
[Annotator "ChessBase"]
[PlyCount "175"]
[EventDate "2022.07.09"]
[EventType "swiss"]
[EventCountry "AUT"]
[SourceTitle "playchess.com"]
[Source "ChessBase"]
[SourceQuality "1"]
[TimeControl "40/5400+30:1800+30"]

1. b3 {[%emt 0:00:06]} Nf6 {[%emt 0:00:22]} 2. Bb2 {[%emt 0:00:08]} c5 {[%emt 0:00:14]} 3. e3 {[%emt 0:00:53]} d5 {[%emt 0:00:16]} 4. f4 {[%emt 0:00:51]} Nc6 {[%emt 0:00:44]} 5. Bb5 {[%emt 0:00:37]} Bg4 {[%emt 0:00:54]} 6. Bxc6+ {[%emt 0:01:44]} bxc6 {[%emt 0:00:08]} 7. Nf3 {[%emt 0:00:03]} e6 {[%emt 0:06:10]} 8. O-O {[%emt 0:04:48]} Be7 {[%emt 0:03:07]} 9. d3 {[%emt 0:00:28]} O-O {[%emt 0:00:54]} 10. Nbd2 {[%emt 0:00:06]} Nd7 {[%emt 0:06:30]} 11. h3 {[%emt 0:05:22]} Bxf3 {[%emt 0:00:14]} 12. Nxf3 {[%emt 0:00:07]} Bf6 {[%emt 0:00:15]} 13. Bxf6 {[%emt 0:26:36]} Qxf6 {[%emt 0:00:24]} 14. Qe1 {[%emt 0:00:05]} Rfe8 {[%emt 0:03:43]} 15. Qg3 {[%emt 0:05:06]} Qg6 {[%emt 0:07:52]} 16. Qxg6 {[%emt 0:07:56]} hxg6 {[%emt 0:02:24]} 17. Ne5 {[%emt 0:00:12]} Nxe5 {[%emt 0:00:28]} 18. fxe5 {[%emt 0:00:02]} Rf8 {[%emt 0:10:31]} 19. Rf4 {[%emt 0:04:59]} f5 {[%emt 0:02:14]} 20. exf6 {[%emt 0:00:34]} gxf6 {[%emt 0:00:06]} 21. Ra4 {[%emt 0:11:56]} a5 {[%emt 0:04:59]} 22. Rf1 {[%emt 0:00:29]} Kg7 {[%emt 0:02:16]} 23. c3 {[%emt 0:07:27]} e5 {[%emt 0:01:09]} 24. Kf2 {[%emt 0:01:30]} Rfb8 {[%emt 0:10:07]} 25. Rc1 {[%emt 0:01:20]} Rb6 {[%emt 0:04:47]} 26. Rc2 {[%emt 0:00:30]} Kf7 {[%emt 0:02:50]} 27. d4 {[%emt 0:01:48]} cxd4 {[%emt 0:04:11]} 28. cxd4 {[%emt 0:00:23]} e4 {[%emt 0:04:27]} 29. Rc5 {[%emt 0:00:11]} Rba6 {[%emt 0:00:30]} 30. h4 {[%emt 0:00:43]} Ke6 {[%emt 0:06:03]} 31. g4 {[%emt 0:02:24]} Kd6 {[%emt 0:06:46]} 32. Kg3 {[%emt 0:00:14]} Ke6 {[%emt 0:00:16]} 33. Rc1 {[%emt 0:00:49]} Rb8 {[%emt 0:05:49]} 34. Rc5 {[%emt 0:00:03]} Rba8 {[%emt 0:00:15]} 35. Kf4 {[%emt 0:00:02]} R8a7 {[%emt 0:02:02]} 36. Rc2 {[%emt 0:03:25]} Ra8 {[%emt 0:00:08]} 37. Rh2 {[%emt 0:01:16]} Rb8 {[%emt 0:02:06]} 38. g5 {[%emt 0:00:27]} Raa8 {[%emt 0:01:11]} 39. gxf6 {[%emt 0:00:35]} Kxf6 {[%emt 0:01:37]} 40. Rc2 {[%emt 0:01:02]} Ra6 {[%emt 0:00:17]} 41. Kg4 {[%emt 0:33:18]} Rb5 {[%emt 0:07:50]} 42. Rf2+ {[%emt 0:00:00]} Kg7 {[%emt 0:00:07]} 43. Kg5 {[%emt 0:00:00]} c5 {[%emt 0:00:47]} 44. Rc2 {[%emt 0:00:00]} Rc6 {[%emt 0:05:38]} 45. Rxc5 {[%emt 0:00:00]} Rcxc5 {[%emt 0:00:17]} 46. dxc5 {[%emt 0:00:00]} Rxc5 {[%emt 0:00:17]} 47. Rd4 {[%emt 0:00:00]} Rb5 {[%emt 0:02:24]} 48. Kf4 {[%emt 0:00:00]} Kf6 {[%emt 0:01:23]} 49. a4 {[%emt 0:00:00]} Rc5 {[%emt 0:02:38]} 50. b4 {[%emt 0:00:00]} axb4 {[%emt 0:01:18]} 51. Rxb4 {[%emt 0:00:00]} Ra5 {[%emt 0:01:37]} 52. Rb6+ {[%emt 0:00:00]} Kg7 {[%emt 0:00:42]} 53. Rb5 {[%emt 0:00:00]} Rxa4 {[%emt 0:00:18]} 54. Rxd5 {[%emt 0:00:00]} Ra8 {[%emt 0:04:09]} 55. Rd4 {[%emt 0:00:00]} Rh8 {[%emt 0:00:28]} 56. Kg4 {[%emt 0:02:17]} Re8 {[%emt 0:00:17]} 57. Rd7+ {[%emt 0:00:42]} Kf6 {[%emt 0:01:50]} 58. Rd6+ {[%emt 0:01:29]} Kg7 {[%emt 0:00:34]} 59. Rd2 {[%emt 0:01:30]} Kf6 {[%emt 0:01:29]} 60. Rf2+ {[%emt 0:00:46]} Kg7 {[%emt 0:00:41]} 61. Ra2 {[%emt 0:00:23]} Kf6 {[%emt 0:01:10]} 62. Kf4 {[%emt 0:00:08]} Kg7 {[%emt 0:00:21]} 63. Ra5 {[%emt 0:01:25]} Kf6 {[%emt 0:00:56]} 64. Kg4 {[%emt 0:00:34]} Rh8 {[%emt 0:00:56]} 65. Ra6+ {[%emt 0:00:35]} Kg7 {[%emt 0:01:07]} 66. Re6 {[%emt 0:00:26]} Ra8 {[%emt 0:00:49]} 67. Rxe4 {[%emt 0:00:07]} Kf6 {[%emt 0:00:13]} 68. Rf4+ {[%emt 0:00:54]} Ke5 {[%emt 0:00:31]} 69. Kg5 {[%emt 0:00:56]} Ra6 {[%emt 0:00:44]} 70. Rf8 {[%emt 0:02:46]} Re6 {[%emt 0:00:30]} 71. Rg8 {[%emt 0:00:43]} Kd5 {[%emt 0:00:27]} 72. Rxg6 {[%emt 0:00:21]} Rxe3 {[%emt 0:00:04]} 73. h5 {[%emt 0:00:22]} Ke5 {[%emt 0:00:40]} 74. Ra6 {[%emt 0:03:37]} Rg3+ {[%emt 0:00:18]} 75. Kh6 {[%emt 0:00:01]} Kf5 {[%emt 0:00:24]} 76. Kh7 {[%emt 0:01:50]} Rg2 {[%emt 0:00:36]} 77. h6 {[%emt 0:00:03]} Rg3 {[%emt 0:00:19]} 78. Kh8 {[%emt 0:01:21]} Rg2 {[%emt 0:01:07]} 79. h7 {[%emt 0:00:30]} Rg3 {[%emt 0:00:41]} 80. Ra8 {[%emt 0:00:29]} Kf6 {[%emt 0:00:57]} 81. Rf8+ {[%emt 0:00:24]} Ke7 {[%emt 0:00:42]} 82. Rg8 {[%emt 0:00:22]} Rh3 {[%emt 0:00:17]} 83. Kg7 {[%emt 0:00:19]} Rg3+ {[%emt 0:00:06]} 84. Kh6 {[%emt 0:00:06]} Rh3+ {[%emt 0:00:08]} 85. Kg6 {[%emt 0:00:08]} Rg3+ {[%emt 0:01:09]} 86. Kf5 {[%emt 0:00:10]} Rf3+ {[%emt 0:02:33]} 87. Ke4 {[%emt 0:00:09]} Rh3 {[%emt 0:00:11]} 88. h8=Q {[%emt 0:00:11]} 1-0

[Event "41st Jacques-Lemans-Open 2022"]
[Site "St. Veit/Glan"]
[Date "2022.07.12"]
[Round "4.22"]
[White "Navaratnam, Ishaan Quan Tze"]
[Black "Hechl, Gerald"]
[Result "0-1"]
[ECO "A11"]
[WhiteElo "1409"]
[BlackElo "2222"]
[Annotator "ChessBase"]
[PlyCount "172"]
[EventDate "2022.07.09"]
[EventType "swiss"]
[EventCountry "AUT"]
[SourceTitle "playchess.com"]
[Source "ChessBase"]
[SourceQuality "1"]
[TimeControl "40/5400+30:1800+30"]

1. e4 {[%emt 0:00:03]} a6 {[%emt 0:00:04]} 2. d4 {[%emt 0:00:07]} b5 {[%emt 0:00:04]} 3. Nf3 {[%emt 0:00:21]} Bb7 {[%emt 0:00:05]} 4. Bd3 {[%emt 0:00:06]} Nf6 {[%emt 0:00:05]} 5. e5 {[%emt 0:00:49]} Nd5 {[%emt 0:00:07]} 6. Bd2 {[%emt 0:06:52]} e6 {[%emt 0:00:19]} 7. Nc3 {[%emt 0:02:17]} Nxc3 {[%emt 0:03:32]} 8. bxc3 {[%emt 0:00:24]} c5 {[%emt 0:02:28]} 9. Qe2 {[%emt 0:01:16]} Be7 {[%emt 0:06:10]} 10. O-O {[%emt 0:04:54]} Qc8 {[%emt 0:10:55]} 11. Bg5 {[%emt 0:15:14]} f6 {[%emt 0:09:53]} 12. Bh4 {[%emt 0:16:20]} Qc6 {[%emt 0:02:42]} 13. Ne1 {[%emt 0:01:04]} Kd8 {[%emt 0:18:31]} 14. Qg4 {[%emt 0:01:58]} g5 {[%emt 0:09:21]} 15. exf6 {[%emt 0:01:15]} Bxf6 {[%emt 0:01:37]} 16. Bxg5 {[%emt 0:00:37]} Bxg5 {[%emt 0:03:22]} 17. Qxg5+ {[%emt 0:00:14]} Kc8 {[%emt 0:00:00]} 18. Nf3 {[%emt 0:05:14]} c4 {[%emt 0:01:37]} 19. Ne5 {[%emt 0:02:47]} Qxg2+ {[%emt 0:03:14]} 20. Qxg2 {[%emt 0:00:25]} Bxg2 {[%emt 0:00:02]} 21. Kxg2 {[%emt 0:01:03]} cxd3 {[%emt 0:00:02]} 22. cxd3 {[%emt 0:00:35]} d6 {[%emt 0:01:20]} 23. Nf3 {[%emt 0:02:03]} Nc6 {[%emt 0:01:10]} 24. Rfe1 {[%emt 0:01:35]} Kd7 {[%emt 0:00:14]} 25. Re3 {[%emt 0:02:27]} Ne7 {[%emt 0:00:36]} 26. c4 {[%emt 0:05:54]} Raf8 {[%emt 0:01:35]} 27. Rae1 {[%emt 0:08:52]} Rf6 {[%emt 0:00:29]} 28. d5 {[%emt 0:09:30]} e5 {[%emt 0:08:57]} 29. d4 {[%emt 0:03:15]} Nf5 {[%emt 0:00:06]} 30. Re4 {[%emt 0:00:31]} Rg8+ {[%emt 0:04:46]} 31. Kf1 {[%emt 0:00:37]} Ne7 {[%emt 0:04:22]} 32. Nd2 {[%emt 0:02:48]} Rgf8 {[%emt 0:00:51]} 33. R1e2 {[%emt 0:00:43]} Ng6 {[%emt 0:00:16]} 34. dxe5 {[%emt 0:03:06]} Nxe5 {[%emt 0:01:46]} 35. c5 {[%emt 0:00:26]} Nd3 {[%emt 0:00:45]} 36. c6+ {[%emt 0:01:22]} Kd8 {[%emt 0:00:01]} 37. f3 {[%emt 0:00:58]} Nf4 {[%emt 0:00:43]} 38. R2e3 {[%emt 0:00:42]} Nxd5 {[%emt 0:00:10]} 39. Rd3 {[%emt 0:00:27]} Nf4 {[%emt 0:03:53]} 40. Rc3 {[%emt 0:00:35]} Ne6 {[%emt 0:01:41]} 41. Rh4 {[%emt 0:30:40]} R8f7 {[%emt 0:04:17]} 42. a4 {[%emt 0:00:00]} Kc7 {[%emt 0:06:03]} 43. axb5 {[%emt 0:00:00]} axb5 {[%emt 0:00:01]} 44. Rb4 {[%emt 0:00:00]} Rf5 {[%emt 0:00:10]} 45. Kf2 {[%emt 0:00:00]} Rh5 {[%emt 0:02:36]} 46. h4 {[%emt 0:00:00]} Nc5 {[%emt 0:00:54]} 47. Ne4 {[%emt 0:00:25]} Kxc6 {[%emt 0:01:43]} 48. Rxb5 {[%emt 0:01:21]} Kxb5 {[%emt 0:11:25]} 49. Nxd6+ {[%emt 0:00:42]} Kb4 {[%emt 0:00:01]} 50. Rc4+ {[%emt 0:00:19]} Kb3 {[%emt 0:00:01]} 51. Rxc5 {[%emt 0:00:23]} Rxf3+ {[%emt 0:00:01]} 52. Kxf3 {[%emt 0:00:02]} Rxc5 {[%emt 0:00:07]} 53. Kg4 {[%emt 0:00:39]} h5+ {[%emt 0:00:22]} 54. Kf4 Kc2 {[%emt 0:00:46]} 55. Nf5 {[%emt 0:00:43]} Kd3 {[%emt 0:00:20]} 56. Nd6 {[%emt 0:02:13]} Kd4 {[%emt 0:01:34]} 57. Nf7 {[%emt 0:01:12]} Ra5 {[%emt 0:00:25]} 58. Ng5 {[%emt 0:00:21]} Rb5 {[%emt 0:00:42]} 59. Nf7 {[%emt 0:00:11]} Rd5 {[%emt 0:03:03]} 60. Ng5 {[%emt 0:00:14]} Kc5 {[%emt 0:00:14]} 61. Nf7 {[%emt 0:01:17]} Kc6 {[%emt 0:00:01]} 62. Nh6 {[%emt 0:00:31]} Kd7 {[%emt 0:00:32]} 63. Nf5 {[%emt 0:00:29]} Ke6 {[%emt 0:00:31]} 64. Ng3 {[%emt 0:00:30]} Kf6 {[%emt 0:00:21]} 65. Ne4+ {[%emt 0:00:30]} Kg6 {[%emt 0:00:01]} 66. Ng3 {[%emt 0:00:31]} Rd4+ {[%emt 0:00:21]} 67. Ne4 {[%emt 0:00:01]} Ra4 {[%emt 0:00:15]} 68. Ke5 {[%emt 0:00:27]} Ra1 {[%emt 0:02:40]} 69. Kf4 {[%emt 0:00:27]} Rg1 {[%emt 0:00:28]} 70. Ng3 {[%emt 0:00:15]} Rg2 {[%emt 0:00:49]} 71. Kf3 {[%emt 0:01:19]} Rh2 {[%emt 0:00:08]} 72. Ne2 {[%emt 0:00:30]} Rxh4 {[%emt 0:00:13]} 73. Kg3 {[%emt 0:00:07]} Kg5 {[%emt 0:00:14]} 74. Ng1 {[%emt 0:00:53]} Rg4+ {[%emt 0:00:25]} 75. Kh2 {[%emt 0:00:08]} Kf4 {[%emt 0:00:53]} 76. Nh3+ {[%emt 0:00:37]} Kf3 {[%emt 0:00:23]} 77. Ng1+ {[%emt 0:00:05]} Kf2 {[%emt 0:00:07]} 78. Nh3+ {[%emt 0:00:07]} Kf1 {[%emt 0:00:04]} 79. Kh1 {[%emt 0:00:17]} h4 {[%emt 0:05:36]} 80. Kh2 {[%emt 0:00:23]} Rg2+ {[%emt 0:00:12]} 81. Kh1 {[%emt 0:00:03]} Ra2 {[%emt 0:00:20]} 82. Ng1 {[%emt 0:00:42]} Kf2 {[%emt 0:00:32]} 83. Kh2 {[%emt 0:00:25]} Ra3 {[%emt 0:00:05]} 84. Nh3+ {[%emt 0:00:41]} Kf3 {[%emt 0:00:19]} 85. Ng1+ {[%emt 0:00:57]} Kg4 {[%emt 0:00:10]} 86. Kh1 {[%emt 0:00:40]} Ra2 {[%emt 0:00:07]} 0-1

[Event "41st Jacques-Lemans-Open 2022"]
[Site "St. Veit/Glan"]
[Date "2022.07.11"]
[Round "4.23"]
[White "Schwab, Lukas"]
[Black "Ljubic, Luka"]
[Result "1/2-1/2"]
[ECO "B33"]
[WhiteElo "2166"]
[BlackElo "1768"]
[Annotator "ChessBase"]
[PlyCount "61"]
[EventDate "2022.07.09"]
[EventType "swiss"]
[EventCountry "AUT"]
[SourceTitle "playchess.com"]
[Source "ChessBase"]
[SourceQuality "1"]
[TimeControl "40/5400+30:1800+30"]

1. e4 {[%emt 0:00:03]} c5 {[%emt 0:00:08]} 2. Nf3 {[%emt 0:00:11]} Nc6 {[%emt 0:00:11]} 3. d4 {[%emt 0:00:17]} cxd4 {[%emt 0:00:07]} 4. Nxd4 {[%emt 0:00:02]} Nf6 {[%emt 0:00:11]} 5. Nc3 {[%emt 0:00:40]} e5 {[%emt 0:00:08]} 6. Ndb5 {[%emt 0:01:17]} d6 {[%emt 0:00:10]} 7. Bg5 {[%emt 0:01:19]} a6 {[%emt 0:00:22]} 8. Na3 {[%emt 0:00:07]} b5 {[%emt 0:00:07]} 9. Nd5 {[%emt 0:01:25]} Be7 {[%emt 0:00:12]} 10. Bxf6 {[%emt 0:00:40]} Bxf6 {[%emt 0:00:08]} 11. c3 {[%emt 0:01:04]} Rb8 {[%emt 0:02:26]} 12. Nc2 {[%emt 0:04:29]} O-O {[%emt 0:00:38]} 13. g3 {[%emt 0:03:10]} Bg5 {[%emt 0:09:56]} 14. Bg2 {[%emt 0:02:14]} Be6 {[%emt 0:00:37]} 15. O-O {[%emt 0:02:24]} a5 {[%emt 0:07:37]} 16. f4 {[%emt 0:22:59]} exf4 {[%emt 0:22:36]} 17. gxf4 {[%emt 0:07:58]} Bh6 {[%emt 0:01:12]} 18. Qh5 {[%emt 0:01:49]} f5 {[%emt 0:10:45]} 19. Nce3 {[%emt 0:04:26]} fxe4 {[%emt 0:02:33]} 20. Bxe4 {[%emt 0:07:10]} Ne7 {[%emt 0:03:24]} 21. Rae1 {[%emt 0:06:13]} Bxd5 {[%emt 0:06:45]} 22. Nxd5 {[%emt 0:08:57]} Nxd5 {[%emt 0:04:19]} 23. Bxd5+ {[%emt 0:01:59]} Kh8 {[%emt 0:00:08]} 24. Re4 {[%emt 0:03:21]} b4 {[%emt 0:07:08]} 25. c4 {[%emt 0:04:23]} b3 {[%emt 0:04:44]} 26. axb3 {[%emt 0:00:53]} Rxb3 {[%emt 0:01:28]} 27. Rf2 {[%emt 0:00:41]} Qb6 {[%emt 0:04:08]} 28. Re8 {[%emt 0:01:58]} g6 {[%emt 0:00:18]} 29. Rxf8+ {[%emt 0:00:24]} Bxf8 {[%emt 0:00:07]} 30. Qe2 {[%emt 0:00:05]} Qe3 {[%emt 0:05:13]} 31. Qxe3 {[%emt 0:05:49]} 1/2-1/2

[Event "41st Jacques-Lemans-Open 2022"]
[Site "St. Veit/Glan"]
[Date "2022.07.11"]
[Round "4.24"]
[White "Besner, Bernhard"]
[Black "Bajorski, Marius"]
[Result "1/2-1/2"]
[ECO "C54"]
[WhiteElo "2164"]
[BlackElo "1870"]
[Annotator "ChessBase"]
[PlyCount "67"]
[EventDate "2022.07.09"]
[EventType "swiss"]
[EventCountry "AUT"]
[SourceTitle "playchess.com"]
[Source "ChessBase"]
[SourceQuality "1"]
[TimeControl "40/5400+30:1800+30"]

1. e4 {[%emt 0:00:06]} e5 {[%emt 0:00:06]} 2. Nf3 {[%emt 0:00:15]} Nc6 {[%emt 0:00:04]} 3. Bc4 {[%emt 0:00:40]} Bc5 {[%emt 0:00:09]} 4. c3 {[%emt 0:01:19]} Nf6 {[%emt 0:00:13]} 5. d4 {[%emt 0:01:20]} exd4 {[%emt 0:00:07]} 6. O-O {[%emt 0:02:02]} Nxe4 {[%emt 0:05:46]} 7. cxd4 {[%emt 0:00:10]} d5 {[%emt 0:00:38]} 8. dxc5 {[%emt 0:00:10]} dxc4 {[%emt 0:00:05]} 9. Qe2 {[%emt 0:00:08]} Qd3 {[%emt 0:00:11]} 10. Re1 {[%emt 0:00:14]} f5 {[%emt 0:02:03]} 11. Nc3 {[%emt 0:00:28]} O-O {[%emt 0:03:06]} 12. Nxe4 {[%emt 0:00:28]} fxe4 {[%emt 0:00:48]} 13. Qxe4 {[%emt 0:00:11]} Bf5 {[%emt 0:00:29]} 14. Qh4 {[%emt 0:00:11]} Rae8 {[%emt 0:19:01]} 15. Bf4 {[%emt 0:00:10]} c3 {[%emt 0:04:52]} 16. bxc3 {[%emt 0:03:19]} Qxc3 {[%emt 0:02:53]} 17. Bxc7 {[%emt 0:14:15]} Qxc5 {[%emt 0:02:32]} 18. Qg3 {[%emt 0:02:40]} Qc4 {[%emt 0:23:59]} 19. Bd6 {[%emt 0:06:51]} Rxe1+ {[%emt 0:00:28]} 20. Rxe1 {[%emt 0:00:18]} Rc8 {[%emt 0:02:02]} 21. a3 {[%emt 0:16:41]} Qg4 {[%emt 0:03:05]} 22. h3 {[%emt 0:06:14]} Qxg3 {[%emt 0:00:19]} 23. Bxg3 {[%emt 0:00:43]} Rd8 {[%emt 0:04:27]} 24. Bf4 {[%emt 0:00:23]} Nd4 {[%emt 0:06:44]} 25. Nxd4 {[%emt 0:08:11]} Rxd4 {[%emt 0:00:06]} 26. Bb8 {[%emt 0:03:17]} a6 {[%emt 0:04:05]} 27. Re7 {[%emt 0:01:48]} Rd7 {[%emt 0:00:27]} 28. Re5 {[%emt 0:01:44]} Bd3 {[%emt 0:02:01]} 29. Re3 {[%emt 0:01:37]} Bb5 {[%emt 0:01:26]} 30. Be5 {[%emt 0:06:32]} Rd3 {[%emt 0:00:53]} 31. Rxd3 {[%emt 0:07:19]} Bxd3 {[%emt 0:00:05]} 32. f4 {[%emt 0:00:22]} Kf7 {[%emt 0:01:04]} 33. Kf2 {[%emt 0:00:10]} g6 {[%emt 0:00:11]} 34. g4 {[%emt 0:03:49]} 1/2-1/2

[Event "41st Jacques-Lemans-Open 2022"]
[Site "St. Veit/Glan"]
[Date "2022.07.11"]
[Round "4.25"]
[White "Galoic, David"]
[Black "Gschiel, Alexander"]
[Result "0-1"]
[ECO "E06"]
[WhiteElo "1963"]
[BlackElo "2215"]
[Annotator "ChessBase"]
[PlyCount "60"]
[EventDate "2022.07.09"]
[EventType "swiss"]
[EventCountry "AUT"]
[SourceTitle "playchess.com"]
[Source "ChessBase"]
[SourceQuality "1"]
[TimeControl "40/5400+30:1800+30"]

1. Nf3 {[%emt 0:00:06]} d5 {[%emt 0:00:13]} 2. c4 {[%emt 0:00:24]} e6 {[%emt 0:00:08]} 3. d4 {[%emt 0:00:39]} Nf6 {[%emt 0:00:24]} 4. g3 {[%emt 0:00:32]} Be7 {[%emt 0:00:22]} 5. Bg2 {[%emt 0:00:28]} O-O {[%emt 0:00:27]} 6. O-O {[%emt 0:00:49]} c6 {[%emt 0:00:41]} 7. Nc3 {[%emt 0:00:49]} Nbd7 {[%emt 0:00:55]} 8. Re1 {[%emt 0:00:35]} dxc4 {[%emt 0:02:20]} 9. a4 {[%emt 0:03:02]} Nd5 {[%emt 0:09:40]} 10. Nd2 {[%emt 0:03:51]} b6 {[%emt 0:11:15]} 11. Nxc4 {[%emt 0:04:23]} Ba6 {[%emt 0:00:17]} 12. Na3 {[%emt 0:05:15]} N7f6 {[%emt 0:04:09]} 13. Bg5 {[%emt 0:11:03]} Rc8 {[%emt 0:06:26]} 14. Nxd5 {[%emt 0:09:39]} cxd5 {[%emt 0:03:43]} 15. Nb5 {[%emt 0:03:32]} Qd7 {[%emt 0:02:01]} 16. Nc3 {[%emt 0:01:32]} h6 {[%emt 0:03:59]} 17. Bd2 {[%emt 0:04:32]} Ne8 {[%emt 0:07:29]} 18. Bf1 {[%emt 0:06:20]} Nd6 {[%emt 0:07:28]} 19. e3 {[%emt 0:02:09]} Bxf1 {[%emt 0:01:15]} 20. Kxf1 {[%emt 0:00:24]} Nc4 {[%emt 0:01:19]} 21. Ra2 {[%emt 0:04:38]} Bb4 {[%emt 0:02:17]} 22. Nb1 {[%emt 0:07:19]} Nxd2+ {[%emt 0:06:56]} 23. Nxd2 {[%emt 0:00:11]} Rc7 {[%emt 0:00:22]} 24. Re2 {[%emt 0:01:39]} Rfc8 {[%emt 0:04:15]} 25. Nb3 {[%emt 0:01:47]} a5 {[%emt 0:00:36]} 26. Kg2 {[%emt 0:02:37]} b5 {[%emt 0:01:24]} 27. Qa1 {[%emt 0:04:40]} bxa4 {[%emt 0:02:03]} 28. Rxa4 {[%emt 0:00:13]} Qb5 {[%emt 0:00:14]} 29. Kf3 {[%emt 0:01:04]} Qd3 {[%emt 0:01:45]} 30. g4 {[%emt 0:00:12]} Qxb3 {[%emt 0:00:07]} 0-1